bitfinex-derivatives/quotes_BNBF0:USTF0_20250221
["timestamp","ask_amount","ask_price","bid_price","bid_amount"]
[1740122581402,0.30527826,655.14,654.49,2.14315813]
[1740122581603,0.30527826,655.14,654.5,2.14315813]
[1740122581901,0.30527826,655.14,654.51,2.14315813]
[1740122582202,0.30527826,655.14,654.52,2.14315813]
[1740122582402,0.30527826,655.14,654.5,2.97717551]
[1740122582403,0.30527826,655.14,654.53,2.14315813]
[1740122582600,0.30527826,655.14,654.54,2.14315813]
[1740122582796,0.30527826,655.14,654.55,2.14315813]
[1740122582999,0.30527826,655.14,654.56,2.14315813]
[1740122583301,0.30527826,655.14,654.2,1.14023109]
[1740122583501,0.30527826,655.14,654.21,2.14267628]
[1740122583702,0.30527826,655.14,654.22,2.14267628]
[1740122583897,0.30527826,655.14,654.23,2.14267628]
[1740122584102,0.30527826,655.14,654.26,1.14023109]
[1740122584402,0.30527826,655.14,654.27,2.14267628]
[1740122584602,0.30527826,655.14,654.28,2.14267628]
[1740122584795,0.30527826,655.14,654.29,2.14267628]
[1740122584996,0.30527826,655.14,654.3,2.14267628]
[1740122585198,0.30527826,655.14,654.31,2.14267628]
[1740122585398,0.30527826,655.14,654.32,2.14267628]
[1740122585599,0.30527826,655.14,654.33,2.14267628]
[1740122585800,0.30527826,655.14,654.34,2.14267628]
[1740122586000,0.30527826,655.14,654.35,2.14267628]
[1740122586197,0.30527826,655.14,654.36,2.14267628]
[1740122586399,0.30527826,655.14,654.37,2.14267628]
[1740122586599,0.30527826,655.14,654.38,2.14267628]
[1740122586796,0.30527826,655.14,654.39,2.14267628]
[1740122586995,0.30527826,655.14,654.4,2.14267628]
[1740122587202,0.30527826,655.14,654.35,2.97723273]
[1740122587502,0.30527826,655.14,654.36,5.12018111]
[1740122587702,0.30527826,655.14,654.37,2.14294838]
[1740122587906,0.30527826,655.14,654.38,2.14294838]
[1740122588105,0.30527826,655.14,654.36,2.97723273]
[1740122589403,0.30527826,655.14,650.93,6.06331801]
[1740122589706,0.30527826,655.14,653.3,0.30613806]
[1740122589903,0.30527826,655.14,653.31,2.14249334]
[1740122590104,0.30527826,655.14,653.33,0.30612401]
[1740122590398,0.30527826,655.14,653.34,2.14249334]
[1740122590602,0.30527826,655.14,653.35,2.14249334]
[1740122590804,0.30527826,655.14,654.07,1.14264523]
[1740122591005,0.30527826,655.14,654.08,2.14249334]
[1740122591199,1.301,655.13,654.09,2.14249334]
[1740122591403,1.301,655.13,654.1,2.14249334]
[1740122591704,1.301,655.13,654.11,5.11952331]
[1740122591898,1.301,655.13,654.12,2.14249334]
[1740122592102,1.301,655.13,654.13,2.14249334]
[1740122592300,1.301,655.13,654.14,2.14249334]
[1740122592504,1.301,655.13,654.15,2.14249334]
[1740122592698,1.301,655.13,654.16,2.14249334]
[1740122592903,1.301,655.13,654.17,2.14249334]
[1740122593099,1.301,655.13,654.11,2.97702997]
[1740122593100,1.301,655.13,654.18,5.11952331]
[1740122593305,1.301,655.13,654.19,2.14249334]
[1740122593601,1.301,655.13,654.2,2.14249334]
[1740122593808,1.301,655.13,654.22,1.14264523]
[1740122594105,1.301,655.13,654.23,2.14249334]
[1740122594305,1.301,655.13,654.24,2.14249334]
[1740122594498,1.301,655.13,654.25,2.14249334]
[1740122594702,1.301,655.13,654.26,2.14249334]
[1740122594899,1.301,655.13,654.27,5.11952331]
[1740122595104,1.301,655.13,654.28,2.14249334]
[1740122595403,1.301,655.13,654.29,2.14249334]
[1740122595707,1.301,655.13,654.3,2.14249334]
[1740122595905,1.301,655.13,654.31,2.14249334]
[1740122596103,1.301,655.13,654.32,2.14249334]
[1740122596304,1.301,655.13,654.33,2.14249334]
[1740122596509,1.301,655.13,654.34,5.11952331]
[1740122596703,1.301,655.13,654.35,2.14249334]
[1740122596906,1.301,655.13,654.36,2.14249334]
[1740122597108,1.301,655.13,654.37,2.14249334]
[1740122597307,1.301,655.13,654.38,2.14249334]
[1740122597505,1.301,655.13,654.39,2.14249334]
[1740122597700,1.301,655.13,654.34,2.97702997]
[1740122597701,1.301,655.13,654.4,2.14249334]
[1740122597903,1.301,655.13,654.41,2.14249334]
[1740122598107,1.301,655.13,654.42,2.14249334]
[1740122598308,1.301,655.13,654.43,2.14249334]
[1740122598609,1.301,655.13,654.44,2.14249334]
[1740122598806,1.301,655.13,654.45,2.14249334]
[1740122599009,1.301,655.13,654.46,2.14249334]
[1740122599309,1.301,655.13,654.47,2.14249334]
[1740122599510,1.301,655.13,654.48,2.14249334]
[1740122599709,1.301,655.13,654.49,2.14249334]
[1740122600009,1.301,655.13,654.5,5.11952331]
[1740122600211,1.301,655.13,654.51,2.14249334]
[1740122600513,1.301,655.13,654.52,2.14249334]
[1740122600711,1.301,655.13,654.5,2.97702997]
[1740122600712,1.301,655.13,654.53,2.14249334]
[1740122600912,1.301,655.13,654.54,2.14249334]
[1740122601108,1.301,655.13,654.55,2.14249334]
[1740122601308,1.301,655.13,654.56,2.14249334]
[1740122601510,1.301,655.13,654.57,2.14249334]
[1740122601710,1.301,655.13,654.58,2.14249334]
[1740122601908,1.301,655.13,654.59,2.14249334]
[1740122602110,1.301,655.13,654.6,2.14249334]
[1740122602313,1.301,655.13,654.57,2.97702997]
[1740122603513,1.301,655.13,654.22,1.14264523]
[1740122603708,1.301,655.13,654.23,2.14290717]
[1740122603913,1.301,655.13,654.24,2.14290717]
[1740122604113,1.301,655.13,654.25,2.14290717]
[1740122604315,1.301,655.13,654.26,2.14290717]
[1740122604514,1.301,655.13,654.27,2.14290717]
[1740122604714,1.301,655.13,654.28,2.14290717]
[1740122604915,1.301,655.13,654.24,2.97764936]
[1740122604916,1.301,655.13,654.29,2.14290717]
[1740122605116,1.301,655.13,654.3,2.14290717]
[1740122605317,1.301,655.13,654.31,2.14290717]
[1740122605611,1.301,655.13,654.32,5.12055653]
[1740122605817,1.301,655.13,654.33,2.14290717]
[1740122606015,1.301,655.13,654.34,2.14290717]
[1740122606212,1.301,655.13,654.35,2.14290717]
[1740122606417,1.301,655.13,654.36,2.14290717]
[1740122606617,1.301,655.13,654.37,2.14290717]
[1740122606814,1.301,655.13,654.32,2.97764936]
[1740122607012,1.301,655.13,654.33,2.14315854]
[1740122607215,1.301,655.13,654.34,2.14315854]
[1740122607418,0.30527826,655.14,654.35,2.14315854]
[1740122607615,0.30527826,655.14,654.36,2.14315854]
[1740122607817,0.30527826,655.14,654.37,2.14315854]
[1740122608020,0.30527826,655.14,654.34,2.97764936]
[1740122608222,0.30527826,655.14,654.35,2.14306924]
[1740122608423,0.30527826,655.14,654.36,2.14306924]
[1740122608622,0.30527826,655.14,654.34,2.97764936]
[1740122608823,0.30527826,655.14,654.35,2.14320296]
[1740122609023,0.30527826,655.14,654.36,2.14320296]
[1740122609221,0.30527826,655.14,654.34,2.97764936]
[1740122609418,0.30527826,655.14,654.35,2.14323668]
[1740122609725,0.30527826,655.14,654.36,2.14323668]
[1740122609924,0.30527826,655.14,654.37,2.14322455]
[1740122610125,0.30527826,655.14,654.35,2.97764936]
[1740122610322,0.30527826,655.14,654.36,2.14322211]
[1740122610523,0.30527826,655.14,654.37,2.14315692]
[1740122610825,0.30527826,655.14,654.35,2.97764936]
[1740122611027,0.30527826,655.14,654.36,2.14324493]
[1740122611225,0.30527826,655.14,654.35,2.97764936]
[1740122611425,0.30527826,655.14,654.36,2.14327558]
[1740122611628,0.30527826,655.14,654.37,2.14327558]
[1740122611925,0.30527826,655.14,654.16,1.14264523]
[1740122612125,0.30527826,655.14,654.17,2.14320179]
[1740122612326,0.30527826,655.14,654.18,2.14320179]
[1740122612625,0.30527826,655.14,654.19,2.14320179]
[1740122612826,0.30527826,655.14,654.2,2.14320179]
[1740122613021,0.30527826,655.14,654.21,2.14320179]
[1740122613222,0.30527826,655.14,654.22,2.14320179]
[1740122613426,0.30527826,655.14,654.23,2.14320179]
[1740122613621,0.30527826,655.14,654.24,2.14320179]
[1740122613822,0.30527826,655.14,654.25,2.14320179]
[1740122614018,0.30527826,655.14,654.26,2.14320179]
[1740122614220,0.30527826,655.14,654.27,2.14320179]
[1740122614423,0.30527826,655.14,654.28,2.14320179]
[1740122614623,0.30527826,655.14,654.29,2.14320179]
[1740122614827,0.30527826,655.14,654.3,2.14320179]
[1740122615022,0.30527826,655.14,654.31,2.14320179]
[1740122615221,0.30527826,655.14,654.32,2.14320179]
[1740122615528,0.30527826,655.14,654.33,2.14320179]
[1740122615822,0.30527826,655.14,654.34,2.14320179]
[1740122616025,0.30527826,655.14,654.35,2.14320179]
[1740122616226,0.30527826,655.14,654.36,2.14320179]
[1740122616527,0.30527826,655.14,654.33,2.97809985]
[1740122616528,0.30527826,655.14,654.37,2.14320179]
[1740122616726,0.30527826,655.14,654.38,2.14320179]
[1740122617026,0.30527826,655.14,654.39,2.14320179]
[1740122617227,0.30527826,655.14,654.4,2.14320179]
[1740122617423,0.30527826,655.14,654.41,2.14320179]
[1740122617624,0.30527826,655.14,654.42,2.14320179]
[1740122617819,0.30527826,655.14,654.37,2.97809985]
[1740122618026,0.30527826,655.14,654.38,2.14340486]
[1740122618221,0.30527826,655.14,654.39,2.14340486]
[1740122618425,0.30527826,655.14,654.4,2.14340486]
[1740122618627,0.30527826,655.14,654.41,2.14340486]
[1740122618827,0.30527826,655.14,654.21,1.14264523]
[1740122619126,0.30527826,655.14,654.22,5.121953]
[1740122619330,0.30527826,655.14,654.23,2.14349337]
[1740122619524,0.30527826,655.14,654.24,2.14349337]
[1740122619827,0.30527826,655.14,654.25,2.14349337]
[1740122620028,0.30527826,655.14,654.26,2.14349337]
[1740122620325,0.30527826,655.14,654.27,2.14349337]
[1740122620521,0.30527826,655.14,654.28,2.14349337]
[1740122620726,0.30527826,655.14,654.29,2.14349337]
[1740122620926,0.30527826,655.14,654.3,2.14349337]
[1740122621227,0.30527826,655.14,654.31,5.121953]
[1740122621526,0.30527826,655.14,654.31,2.97845963]
[1740122622828,0.30527826,655.14,654.22,1.14264523]
[1740122623032,0.30527826,655.14,654.23,2.14374353]
[1740122623231,0.30527826,655.14,654.24,5.12253744]
[1740122623423,0.30527826,655.14,654.25,2.14374353]
[1740122623630,0.30527826,655.14,654.24,2.97879391]
[1740122624728,0.30527826,655.14,654.22,1.14264523]
[1740122625029,0.30527826,655.14,654.1,1.14264523]
[1740122625537,0.30527826,655.14,654.11,2.14370399]
[1740122625829,0.30527826,655.14,654.12,2.14355302]
[1740122626029,0.30527826,655.14,654.13,2.14341982]
[1740122626230,0.30527826,655.14,654.14,2.14341982]
[1740122626430,0.30527826,655.14,654.15,2.14341982]
[1740122626631,0.30527826,655.14,654.16,2.14341982]
[1740122626833,0.30527826,655.14,654.17,2.14341982]
[1740122627033,0.30527826,655.14,654.18,2.14287091]
[1740122627231,0.30527826,655.14,654.19,2.14287091]
[1740122627427,0.30527826,655.14,654.15,2.97848212]
[1740122627632,0.30527826,655.14,654.16,2.14247129]
[1740122627832,0.30527826,655.14,654.17,2.14247129]
[1740122628034,0.30527826,655.14,654.12,1.14264523]
[1740122628330,0.30527826,655.14,654.13,2.14272665]
[1740122628532,0.30527826,655.14,654.14,2.14272665]
[1740122628731,0.30527826,655.14,654.15,2.14272665]
[1740122628930,0.30527826,655.14,654.16,2.14272665]
[1740122629132,0.30527826,655.14,654.17,2.14272665]
[1740122629331,0.30527826,655.14,654.13,2.97729362]
[1740122629530,0.30527826,655.14,654.14,2.14236431]
[1740122629734,0.30527826,655.14,654.13,2.97729362]
[1740122630335,0.30527826,655.14,652.01,6.06393263]
[1740122630538,0.30527826,655.14,654.15,1.14238331]
[1740122633138,0.30527826,655.14,654.1,1.14238331]
[1740122633332,0.30527826,655.14,654.11,2.14226266]
[1740122633538,0.30527826,655.14,654.12,2.14226266]
[1740122633832,0.30527826,655.14,654.13,2.14226266]
[1740122634038,0.30527826,655.14,654.14,2.14226266]
[1740122634233,0.30527826,655.14,654.15,2.14226266]
[1740122634437,0.30527826,655.14,654.11,2.97698085]
[1740122634633,0.30527826,655.14,654.12,2.14229515]
[1740122634832,0.30527826,655.14,654.13,2.14229515]
[1740122635036,0.30527826,655.14,654.14,2.14229515]
[1740122635234,0.30527826,655.14,654.15,2.14229515]
[1740122635438,0.30527826,655.14,654.1,1.14238331]
[1740122635640,0.30527826,655.14,654.11,2.14239316]
[1740122635840,0.30527826,655.14,654.12,2.14239316]
[1740122636034,1.512,655.13,654.13,2.14239316]
[1740122636236,1.512,655.13,654.14,2.14239316]
[1740122636434,1.512,655.13,654.15,2.14239316]
[1740122636637,1.512,655.13,654.16,2.14239316]
[1740122636833,1.512,655.13,654.17,2.14239316]
[1740122637037,1.512,655.13,654.18,2.14239316]
[1740122637239,1.512,655.13,654.19,2.14239316]
[1740122637440,1.512,655.13,654.2,2.14239316]
[1740122637739,1.512,655.13,654.21,2.14239316]
[1740122637939,1.512,655.13,654.22,2.14239316]
[1740122638139,1.512,655.13,654.23,2.14239316]
[1740122638341,1.512,655.13,654.24,2.14239316]
[1740122638535,1.512,655.13,654.25,2.14239316]
[1740122638737,1.512,655.13,654.26,5.11944908]
[1740122638933,1.512,655.13,654.27,2.14239316]
[1740122639235,1.512,655.13,654.28,2.14239316]
[1740122639441,1.512,655.13,654.29,2.14239316]
[1740122639640,1.512,655.13,654.3,2.14239316]
[1740122639837,1.512,655.13,654.31,2.14239316]
[1740122640041,1.512,655.13,654.32,2.14239316]
[1740122640242,1.512,655.13,654.33,2.14239316]
[1740122640441,1.512,655.13,654.34,2.14239316]
[1740122640641,1.512,655.13,654.35,2.14239316]
[1740122640842,1.512,655.13,654.36,2.14239316]
[1740122641044,1.512,655.13,654.37,2.14239316]
[1740122641242,1.512,655.13,654.38,2.14239316]
[1740122641439,1.512,655.13,654.39,2.14239316]
[1740122641639,1.512,655.13,654.4,2.14239316]
[1740122641943,1.512,655.13,654.41,2.14239316]
[1740122642143,1.512,655.13,654.16,1.14238331]
[1740122642342,1.512,655.13,654.17,2.14312084]
[1740122642539,1.512,655.13,654.18,5.121121]
[1740122642737,1.512,655.13,654.19,2.14312084]
[1740122642938,1.512,655.13,654.2,2.14312084]
[1740122643138,1.512,655.13,654.21,2.14312084]
[1740122643339,1.512,655.13,654.22,2.14312084]
[1740122643542,1.512,655.13,654.23,2.14312084]
[1740122643745,1.512,655.13,654.24,2.14312084]
[1740122643945,1.512,655.13,654.25,2.14312084]
[1740122644140,1.512,655.13,654.26,2.14312084]
[1740122644338,1.512,655.13,654.27,2.14312084]
[1740122644545,1.512,655.13,654.28,2.14312084]
[1740122644846,1.512,655.13,654.29,2.14312084]
[1740122645046,1.512,655.13,654.3,2.14312084]
[1740122645239,1.512,655.13,654.31,2.14312084]
[1740122645440,1.512,655.13,654.32,2.14312084]
[1740122645642,1.512,655.13,654.33,2.14312084]
[1740122645844,1.512,655.13,654.34,2.14312084]
[1740122646044,1.512,655.13,654.35,2.14312084]
[1740122646245,1.512,655.13,654.27,2.97800016]
[1740122646246,1.512,655.13,654.36,2.14312084]
[1740122646446,1.512,655.13,654.37,2.14312084]
[1740122646746,1.512,655.13,654.38,2.14312084]
[1740122646946,1.512,655.13,654.39,2.14312084]
[1740122647143,1.512,655.13,654.36,2.97800016]
[1740122647346,1.512,655.13,654.37,2.14340063]
[1740122647545,1.512,655.13,654.38,2.14340063]
[1740122647745,1.512,655.13,654.39,2.14340063]
[1740122648051,1.512,655.13,654.4,2.14340063]
[1740122648353,1.512,655.13,654.41,2.14340063]
[1740122648550,1.512,655.13,654.17,1.14238331]
[1740122648751,1.512,655.13,654.18,2.14301921]
[1740122648947,1.512,655.13,654.19,2.14301921]
[1740122649150,1.512,655.13,654.2,2.14301921]
[1740122649347,1.512,655.13,654.21,2.14301921]
[1740122649546,1.512,655.13,654.22,2.14301921]
[1740122649746,1.512,655.13,654.23,2.14301921]
[1740122649947,1.512,655.13,654.24,2.14301921]
[1740122650153,1.512,655.13,654.25,2.14301921]
[1740122650350,1.512,655.13,654.26,2.14301921]
[1740122650552,1.512,655.13,654.27,2.14301921]
[1740122650752,1.512,655.13,654.28,2.14301921]
[1740122650953,1.512,655.13,654.29,2.14301921]
[1740122651251,1.512,655.13,654.3,2.14301921]
[1740122651555,1.512,655.13,654.31,2.14301921]
[1740122651750,1.512,655.13,654.32,2.14301921]
[1740122651955,1.512,655.13,654.33,2.14301921]
[1740122652154,1.512,655.13,654.34,2.14301921]
[1740122652352,1.512,655.13,654.35,2.14301921]
[1740122652553,1.512,655.13,654.36,2.14301921]
[1740122652753,1.512,655.13,654.37,2.14301921]
[1740122652948,1.512,655.13,654.38,2.14301921]
[1740122653147,1.512,655.13,654.39,2.14301921]
[1740122653349,1.512,655.13,654.4,2.14301921]
[1740122653554,1.512,655.13,654.41,2.14301921]
[1740122653757,1.512,655.13,654.42,2.14301921]
[1740122654055,1.512,655.13,654.43,5.1208849]
[1740122654254,1.512,655.13,654.44,2.14301921]
[1740122654455,1.512,655.13,654.45,2.14301921]
[1740122654656,1.512,655.13,654.46,2.14301921]
[1740122654848,1.512,655.13,654.47,2.14301921]
[1740122655049,1.512,655.13,654.48,2.14301921]
[1740122655255,1.512,655.13,654.49,2.14301921]
[1740122655448,1.512,655.13,654.5,2.14301921]
[1740122655650,1.512,655.13,654.51,2.14301921]
[1740122655853,1.512,655.13,654.52,2.14301921]
[1740122656052,1.512,655.13,654.53,2.14301921]
[1740122656257,1.512,655.13,654.54,2.14301921]
[1740122656457,1.512,655.13,654.55,2.14301921]
[1740122656655,1.512,655.13,654.56,2.14301921]
[1740122656855,1.512,655.13,654.57,2.14301921]
[1740122657055,1.512,655.13,654.58,2.14301921]
[1740122657253,1.512,655.13,654.59,2.14301921]
[1740122657561,1.512,655.13,654.6,5.1208849]
[1740122657761,1.512,655.13,654.61,2.14301921]
[1740122657961,1.512,655.13,654.62,2.14301921]
[1740122658163,1.512,655.13,654.63,2.14301921]
[1740122658462,1.512,655.13,654.64,2.14301921]
[1740122658663,1.512,655.13,654.65,2.14301921]
[1740122658862,1.512,655.13,654.6,2.97786569]
[1740122659062,1.512,655.13,654.07,1.14238331]
[1740122659063,0.30527826,655.14,654.61,5.12045771]
[1740122659260,0.30527826,655.14,654.62,2.14259202]
[1740122659465,0.30527826,655.14,654.61,2.97786569]
[1740122660267,0.30527826,655.14,654.31,1.14238331]
[1740122660467,0.30527826,655.14,654.32,2.14316474]
[1740122660663,0.30527826,655.14,654.33,2.14316474]
[1740122660863,0.30527826,655.14,654.34,2.14316474]
[1740122661068,0.30527826,655.14,654.35,2.14316474]
[1740122661267,0.30527826,655.14,654.36,2.14316474]
[1740122661468,0.30527826,655.14,654.37,2.14316474]
[1740122661769,0.30527826,655.14,654.38,2.14316474]
[1740122661964,0.30527826,655.14,654.39,2.14316474]
[1740122662184,0.30527826,655.14,654.21,1.14238331]
[1740122662364,0.30527826,655.14,654.22,2.14309107]
[1740122662563,0.30527826,655.14,654.23,2.14309107]
[1740122662768,0.30527826,655.14,654.24,2.14309107]
[1740122663068,0.30527826,655.14,654.25,2.14309107]
[1740122663367,0.30527826,655.14,654.26,2.14309107]
[1740122663567,0.30527826,655.14,654.27,2.14309107]
[1740122663862,0.30527826,655.14,654.28,2.14309107]
[1740122664062,0.30527826,655.14,654.29,2.14309107]
[1740122664267,0.30527826,655.14,654.3,2.14309107]
[1740122664471,0.30527826,655.14,654.31,2.14309107]
[1740122664767,0.30527826,655.14,654.32,2.14309107]
[1740122664971,0.30527826,655.14,654.33,2.14309107]
[1740122665172,0.30527826,655.14,654.34,2.14309107]
[1740122665472,0.30527826,655.14,654.35,2.14309107]
[1740122665673,0.30527826,655.14,654.36,2.14309107]
[1740122665870,0.30527826,655.14,654.37,2.14309107]
[1740122666076,0.30527826,655.14,654.2,1.14238331]
[1740122667068,0.30527826,655.14,654.02,1.14238331]
[1740122671082,0.30527826,655.14,654.04,1.14238331]
[1740122672975,0.30527826,655.14,654.05,2.14322716]
[1740122673181,0.30527826,655.14,654.06,2.14322716]
[1740122673379,0.30527826,655.14,654.07,2.14322716]
[1740122673582,0.30527826,655.14,654.08,2.14322716]
[1740122673883,0.30527826,655.14,654.09,2.14322716]
[1740122674077,0.30527826,655.14,654.1,2.14322716]
[1740122674281,0.30527826,655.14,654.11,2.14322716]
[1740122674581,0.30527826,655.14,654.12,2.14322716]
[1740122674780,0.30527826,655.14,654.13,2.14322716]
[1740122674981,0.30527826,655.14,654.14,2.14322716]
[1740122675182,0.30527826,655.14,654.15,2.14322716]
[1740122675375,0.30527826,655.14,654.16,2.14322716]
[1740122675580,0.30527826,655.14,654.17,2.14322716]
[1740122675881,0.30527826,655.14,654.18,2.14322716]
[1740122676082,0.30527826,655.14,654.19,2.14322716]
[1740122676283,0.30527826,655.14,654.2,2.14322716]
[1740122676481,0.30527826,655.14,654.21,5.12140984]
[1740122676681,0.30527826,655.14,654.22,2.14322716]
[1740122676881,0.30527826,655.14,654.23,2.14322716]
[1740122677082,0.30527826,655.14,654.21,2.97818268]
[1740122677083,0.30527826,655.14,654.24,2.14322716]
[1740122677282,0.30527826,655.14,654.25,2.14322716]
[1740122677484,0.30527826,655.14,654.26,2.14322716]
[1740122677676,0.30527826,655.14,654.27,2.14322716]
[1740122677881,0.30527826,655.14,654.29,1.14238331]
[1740122678081,1.76127826,655.14,654.3,2.14322716]
[1740122678384,1.76127826,655.14,654.31,2.14322716]
[1740122678578,1.76127826,655.14,654.32,2.14322716]
[1740122678777,1.76127826,655.14,654.33,2.14322716]
[1740122678977,1.76127826,655.14,654.34,2.14322716]
[1740122679181,1.76127826,655.14,654.35,2.14322716]
[1740122679381,1.76127826,655.14,654.36,2.14322716]
[1740122679582,1.76127826,655.14,654.37,5.12140984]
[1740122679785,1.76127826,655.14,654.38,2.14322716]
[1740122680085,1.76127826,655.14,654.39,2.14322716]
[1740122680281,1.76127826,655.14,654.4,2.14322716]
[1740122680477,1.76127826,655.14,654.41,2.14322716]
[1740122680682,1.76127826,655.14,654.42,2.14322716]
[1740122680982,1.76127826,655.14,654.43,2.14322716]
[1740122681182,1.76127826,655.14,654.44,2.14322716]
[1740122681486,1.76127826,655.14,654.45,2.14322716]
[1740122681784,1.76127826,655.14,654.46,2.14322716]
[1740122681985,1.76127826,655.14,654.47,5.12140984]
[1740122682181,1.76127826,655.14,654.48,2.14322716]
[1740122682378,1.76127826,655.14,654.49,2.14322716]
[1740122682685,1.76127826,655.14,654.5,2.14322716]
[1740122682884,1.76127826,655.14,654.51,2.14322716]
[1740122683081,1.76127826,655.14,654.52,2.14322716]
[1740122683278,1.76127826,655.14,654.53,2.14322716]
[1740122683481,1.76127826,655.14,654.54,2.14322716]
[1740122683683,1.76127826,655.14,654.55,5.12140984]
[1740122683884,1.76127826,655.14,654.56,2.14322716]
[1740122684084,1.76127826,655.14,654.57,2.14322716]
[1740122684286,1.76127826,655.14,654.58,2.14322716]
[1740122684584,1.76127826,655.14,654.59,2.14322716]
[1740122684784,1.76127826,655.14,654.6,2.14322716]
[1740122684987,1.76127826,655.14,654.55,2.97818268]
[1740122685183,1.76127826,655.14,654.56,2.14306495]
[1740122685383,1.76127826,655.14,654.57,2.14306495]
[1740122685582,1.76127826,655.14,654.58,2.14306495]
[1740122685779,1.76127826,655.14,654.59,2.14306495]
[1740122685980,1.76127826,655.14,654.33,1.14238331]
[1740122686180,1.76127826,655.14,654.34,5.12127204]
[1740122686486,1.76127826,655.14,654.35,2.14311273]
[1740122686681,1.76127826,655.14,654.36,2.14311273]
[1740122686880,1.76127826,655.14,654.37,2.14311273]
[1740122687080,1.76127826,655.14,654.38,2.14311273]
[1740122687284,1.76127826,655.14,654.39,2.14311273]
[1740122687482,1.76127826,655.14,654.4,2.14311273]
[1740122687682,1.76127826,655.14,654.41,5.12127204]
[1740122687885,1.76127826,655.14,654.42,2.14311273]
[1740122688186,1.76127826,655.14,654.43,2.14311273]
[1740122688487,1.76127826,655.14,654.44,2.14311273]
[1740122688685,1.76127826,655.14,654.41,2.97815931]
[1740122689286,1.76127826,655.14,654.42,2.14311187]
[1740122689487,1.76127826,655.14,654.41,2.97815931]
[1740122689686,1.76127826,655.14,654.42,2.14310834]
[1740122689883,1.76127826,655.14,654.41,2.97815931]
[1740122690088,1.76127826,655.14,654.28,1.14238331]
[1740122690284,1.76127826,655.14,654.29,5.12104705]
[1740122690490,1.76127826,655.14,654.3,2.1430626]
[1740122690690,1.76127826,655.14,654.31,2.1430626]
[1740122690890,1.76127826,655.14,654.32,2.1430626]
[1740122691191,1.76127826,655.14,654.33,2.1430626]
[1740122691491,1.76127826,655.14,654.34,2.1430626]
[1740122691692,1.76127826,655.14,654.35,5.12104705]
[1740122691888,1.76127826,655.14,654.36,2.1430626]
[1740122692084,1.76127826,655.14,654.37,2.1430626]
[1740122692284,1.76127826,655.14,654.35,2.97798445]
[1740122692985,1.76127826,655.14,654.2,1.14238331]
[1740122693185,1.76127826,655.14,654.21,2.14238308]
[1740122693489,1.76127826,655.14,654.22,2.14238308]
[1740122693692,1.76127826,655.14,654.23,2.14238308]
[1740122693886,1.76127826,655.14,654.24,5.11944643]
[1740122694192,0.30527826,655.14,654.25,2.14238308]
[1740122694392,0.30527826,655.14,654.26,2.14238308]
[1740122694691,0.30527826,655.14,654.27,2.14238308]
[1740122694894,0.30527826,655.14,654.28,2.14238308]
[1740122695091,0.30527826,655.14,654.29,2.14238308]
[1740122695292,0.30527826,655.14,654.3,2.14238308]
[1740122695492,0.30527826,655.14,654.31,2.14238308]
[1740122695693,0.30527826,655.14,654.32,2.14238308]
[1740122695894,0.30527826,655.14,654.29,2.97706335]
[1740122696095,0.30527826,655.14,654.3,2.14166172]
[1740122696292,0.30527826,655.14,654.29,2.97706335]
[1740122696488,0.30527826,655.14,654.3,2.14147014]
[1740122696691,0.30527826,655.14,654.29,2.97706335]
[1740122696893,0.30527826,655.14,654.3,2.14143432]
[1740122697093,0.30527826,655.14,654.31,2.14143432]
[1740122697296,0.30527826,655.14,654.32,2.14143432]
[1740122697490,0.30527826,655.14,654.33,5.11705808]
[1740122697692,0.30527826,655.14,654.34,2.14143432]
[1740122697896,0.30527826,655.14,654.35,2.14143432]
[1740122698194,0.30527826,655.14,654.36,2.14143432]
[1740122698397,0.30527826,655.14,654.37,2.14143432]
[1740122698694,0.30527826,655.14,654.38,2.14143432]
[1740122698896,0.30527826,655.14,654.39,2.14143432]
[1740122699096,0.30527826,655.14,654.4,2.14143432]
[1740122699297,0.30527826,655.14,654.41,2.14143432]
[1740122699498,0.30527826,655.14,654.4,2.97562376]
[1740122701400,0.30527826,655.14,654.23,1.14238331]
[1740122701600,0.30527826,655.14,654.13,1.14238331]
[1740122703601,0.30527826,655.14,654.14,2.14154312]
[1740122703899,0.30527826,655.14,654.13,1.14238331]
[1740122704098,0.30527826,655.14,654.14,2.14147068]
[1740122704298,0.30527826,655.14,654.15,2.1413916]
[1740122704494,0.30527826,655.14,654.04,1.14238331]
[1740122704700,0.30527826,655.14,654.05,2.14136103]
[1740122704898,0.30527826,655.14,654.06,2.14136103]
[1740122705099,0.30527826,655.14,654.07,2.14136103]
[1740122705299,0.30527826,655.14,654.08,2.14136103]